fUSD/lending_fUSD_20250205
["ID","MTS","AMOUNT","RATE_DAILY","PERIOD"]
[351696857,1738749046577,-1000.0,9.636e-05,2]
[351696858,1738749046586,-1000.0,9.636e-05,2]
[351696859,1738749046595,-1000.0,9.636e-05,2]
[351696860,1738749046604,-1000.0,9.636e-05,2]
[351696861,1738749046613,-1000.0,9.636e-05,2]
[351696862,1738749046623,-1000.0,9.636e-05,2]
[351696863,1738749046632,-1000.0,9.636e-05,2]
[351696864,1738749046641,-1000.0,9.636e-05,2]
[351696865,1738749046650,-1000.0,9.636e-05,2]
[351696866,1738749046659,-1000.0,9.636e-05,2]
[351696867,1738749046668,-1007.0,9.636e-05,2]
[351696868,1738749046677,-1453.42,9.636e-05,2]
[351696869,1738749046686,-500.0,9.636e-05,2]
[351696870,1738749046695,-228.09722215,9.636e-05,2]
[351696871,1738749046703,-339.11,9.636e-05,2]
[351696872,1738749046712,-364.34,9.636e-05,2]
[351696873,1738749046721,-500.0,9.636e-05,2]
[351696874,1738749046730,-500.0,9.636e-05,2]
[351696875,1738749046739,-192.78,9.636e-05,2]
[351696876,1738749046748,-225.51,9.636e-05,2]
[351696877,1738749046757,-537.35022478,9.636e-05,2]
[351696878,1738749046766,-555.33,9.636e-05,2]
[351696879,1738749046775,-379.5,9.636e-05,2]
[351696880,1738749046784,-646.35,9.636e-05,2]
[351696881,1738749046794,-263.59,9.636e-05,2]
[351696882,1738749046803,-500.0,9.636e-05,2]
[351696883,1738749046812,-516.22,9.636e-05,2]
[351696884,1738749046822,-368.22,9.636e-05,2]
[351696885,1738749046831,-444.49,9.636e-05,2]
[351696886,1738749046840,-575.9,9.636e-05,2]
[351696887,1738749046849,-347.79,9.636e-05,2]
[351696888,1738749046857,-419.07,9.636e-05,2]
[351696889,1738749046866,-500.0,9.636e-05,2]
[351696890,1738749046874,-500.0,9.636e-05,2]
[351696891,1738749046880,-500.0,9.636e-05,2]
[351696892,1738749046886,-500.0,9.636e-05,2]
[351696893,1738749046893,-500.0,9.636e-05,2]
[351696894,1738749046900,-500.0,9.636e-05,2]
[351696895,1738749046907,-500.0,9.636e-05,2]
[351696896,1738749046914,-500.0,9.636e-05,2]
[351696897,1738749046920,-500.0,9.636e-05,2]
[351696898,1738749046928,-500.0,9.636e-05,2]
[351696899,1738749046935,-500.0,9.636e-05,2]
[351696900,1738749046943,-500.0,9.636e-05,2]
[351696901,1738749046949,-500.0,9.636e-05,2]
[351696902,1738749046957,-500.0,9.636e-05,2]
[351696903,1738749046964,-500.0,9.636e-05,2]
[351696904,1738749046972,-300.0,9.64e-05,2]
[351696905,1738749046979,-2109.0,9.669e-05,2]
[351696906,1738749046986,-19729.45,9.67e-05,2]
[351696907,1738749046992,-377.86,9.67e-05,2]
[351696908,1738749046999,-29999.99,9.67e-05,2]
[351696909,1738749047005,-200.0,9.7e-05,3]
[351696910,1738749047013,-1000.0,9.733e-05,2]
[351696911,1738749047021,-1453.42,9.773e-05,2]
[351696912,1738749047028,-500.0,9.773e-05,2]
[351696913,1738749047035,-221.03,9.773e-05,2]
[351696914,1738749047043,-320.92,9.773e-05,2]
[351696915,1738749047053,-311.39375604,9.773e-05,2]
[351696916,1738749047062,-151.88,9.773e-05,2]
[351696917,1738749047071,-500.0,9.773e-05,2]
[351696918,1738749047080,-181.32,9.773e-05,2]
[351696919,1738749047089,-500.0,9.773e-05,2]
[351696920,1738749047099,-500.0,9.773e-05,2]
[351696921,1738749047108,-500.0,9.773e-05,2]
[351696922,1738749047117,-500.0,9.773e-05,2]
[351696923,1738749047127,-500.0,9.773e-05,2]
[351696924,1738749047136,-500.0,9.773e-05,2]
[351696925,1738749047146,-500.0,9.773e-05,2]
[351696926,1738749047155,-208.25,9.773e-05,2]
[351696927,1738749047165,-500.0,9.773e-05,2]
[351696928,1738749047175,-500.0,9.773e-05,2]
[351696929,1738749047184,-456.0,9.773e-05,2]
[351696930,1738749047193,-825.06538865,9.799e-05,2]
[351696931,1738749047202,-200.0,9.8e-05,3]
[351696932,1738749047213,-500.0,9.849e-05,2]
[351696933,1738749047222,-500.0,9.849e-05,2]
[351696934,1738749047232,-229.12141784,9.849e-05,2]
[351696935,1738749047241,-498.78497377,9.849e-05,2]
[351696936,1738749047251,-13005.87383814,9.85e-05,2]
[351696937,1738749047264,-7522.18915123,9.85e-05,2]
[351696938,1738749047275,-9556.3,9.85e-05,2]
[351696939,1738749047321,-27535.30000005,9.85e-05,2]
[351696995,1738750231829,-1043.67,8.219e-05,2]
[351696996,1738750231838,-23900.0,8.934e-05,2]
[351696997,1738750231847,-1000.0,8.963e-05,2]
[351696998,1738750231857,-5000.0,8.973e-05,2]
[351696999,1738750231867,-250.0,8.982e-05,2]
[351697000,1738750231876,-189.6,9.011e-05,2]
[351697001,1738750231886,-587.76,9.053e-05,2]
[351697002,1738750231895,-233.39,9.088e-05,2]
[351697003,1738750231905,-2310.393,9.499e-05,2]
[351697004,1738750231915,-500.0,9.499e-05,2]
[351697005,1738750231924,-598.77,9.499e-05,2]
[351697006,1738750231934,-190.28,9.528e-05,2]
[351697007,1738750231943,-500.0,9.562e-05,2]
[351697008,1738750231953,-179.48378718,9.562e-05,2]
[351697009,1738750231962,-500.0,9.636e-05,2]
[351697010,1738750231971,-467.35525979,9.773e-05,2]
[351697011,1738750231981,-10325.31817166,9.8e-05,2]
[351697012,1738750231991,-55827.63973308,9.85e-05,2]
[351697013,1738750232000,-2585.548,9.85e-05,2]
[351697015,1738750232010,-106741.0,9.9e-05,2]
[351697016,1738750232020,-500.0,9.991e-05,2]
[351697017,1738750232030,-475.0,9.991e-05,2]
[351697018,1738750232040,-1271.75,9.991e-05,2]
[351697019,1738750232050,-500.0,9.991e-05,2]
[351697020,1738750232060,-1039.9041659,9.991e-05,2]
[351697021,1738750232070,-500.0,9.991e-05,2]
[351697022,1738750232080,-508.75,9.991e-05,2]
[351697023,1738750232090,-500.0,9.991e-05,2]
[351697024,1738750232100,-500.0,9.991e-05,2]
[351697025,1738750232110,-500.0,9.991e-05,2]
[351697026,1738750232119,-500.0,9.991e-05,2]
[351697027,1738750232129,-308.74,9.991e-05,2]
[351697028,1738750232139,-185.47020816,9.991e-05,2]
[351697029,1738750232149,-500.0,9.991e-05,2]
[351697030,1738750232158,-500.0,9.991e-05,2]
[351697031,1738750232168,-500.0,9.991e-05,2]
[351697032,1738750232178,-500.0,9.991e-05,2]
[351697033,1738750232187,-390.57079227,9.991e-05,2]
[351697034,1738750232197,-4007.3009742,9.992e-05,2]
[351697035,1738750232207,-500.0,9.992e-05,2]
[351697036,1738750232217,-229.51,9.992e-05,2]
[351697038,1738750232227,-500.0,9.992e-05,2]
[351697040,1738750232236,-942.6870714,9.993e-05,2]
[351697041,1738750232245,-845.469977,9.993e-05,2]
[351697042,1738750232255,-748.2528826,9.993e-05,2]
[351697043,1738750232265,-651.0357881,9.993e-05,2]
[351697044,1738750232274,-553.8186937,9.993e-05,2]
[351697045,1738750232284,-3632.6720709,9.993e-05,2]
[351697046,1738750232293,-3258.0431675,9.993e-05,2]
[351697047,1738750232303,-2883.4142642,9.993e-05,2]
[351697048,1738750232312,-2508.7853609,9.993e-05,2]
[351697049,1738750232323,-2134.1564575,9.993e-05,2]
[351697050,1738750232334,-3827.73077842,9.999e-05,2]
[351697052,1738750232343,-500.0,9.999e-05,2]
[351697054,1738750232353,-500.0,9.999e-05,2]
[351697056,1738750232363,-500.0,9.999e-05,2]
[351697058,1738750232372,-500.0,9.999e-05,2]
[351697060,1738750232382,-500.0,9.999e-05,2]
[351697062,1738750232392,-500.0,9.999e-05,2]
[351697064,1738750232402,-500.0,9.999e-05,2]
[351697066,1738750232411,-500.0,9.999e-05,2]
[351697068,1738750232421,-500.0,9.999e-05,2]
[351697070,1738750232431,-500.0,9.999e-05,2]
[351697072,1738750232441,-500.0,9.999e-05,2]
[351697074,1738750232451,-500.0,9.999e-05,2]
[351697076,1738750232460,-500.0,9.999e-05,2]
[351697078,1738750232470,-500.0,9.999e-05,2]
[351697080,1738750232480,-500.0,9.999e-05,2]
[351697082,1738750232490,-629.42834744,9.999e-05,2]
[351697084,1738750232500,-500.0,9.999e-05,2]
[351697086,1738750232509,-500.0,9.999e-05,2]
[351697087,1738750232519,-500.0,9.999e-05,2]
[351697088,1738750232529,-500.0,9.999e-05,2]
[351697089,1738750232538,-500.0,9.999e-05,2]
[351697090,1738750232547,-500.0,9.999e-05,2]
[351697091,1738750232557,-500.0,9.999e-05,2]
[351697092,1738750232567,-500.0,9.999e-05,2]
[351697093,1738750232576,-500.0,9.999e-05,2]
[351697094,1738750232586,-500.0,9.999e-05,2]
[351697095,1738750232596,-500.0,9.999e-05,2]
[351697096,1738750232606,-500.0,9.999e-05,2]
[351697097,1738750232615,-500.0,9.999e-05,2]
[351697098,1738750232625,-500.0,9.999e-05,2]
[351697099,1738750232634,-500.0,9.999e-05,2]
[351697100,1738750232644,-500.0,9.999e-05,2]
[351697101,1738750232654,-500.0,9.999e-05,2]
[351697102,1738750232663,-500.0,9.999e-05,2]
[351697103,1738750232673,-500.0,9.999e-05,2]
[351697104,1738750232682,-500.0,9.999e-05,2]
[351697105,1738750232691,-500.0,9.999e-05,2]
[351697106,1738750232700,-500.0,9.999e-05,2]
[351697107,1738750232710,-500.0,9.999e-05,2]
[351697108,1738750232720,-500.0,9.999e-05,2]
[351697109,1738750232730,-500.0,9.999e-05,2]
[351697110,1738750232740,-500.0,9.999e-05,2]
[351697111,1738750232750,-500.0,9.999e-05,2]
[351697112,1738750232760,-500.0,9.999e-05,2]
[351697113,1738750232769,-500.0,9.999e-05,2]
[351697114,1738750232782,-500.0,9.999e-05,2]
[351697115,1738750232792,-500.0,9.999e-05,2]
[351697116,1738750232802,-500.0,9.999e-05,2]
[351697117,1738750232811,-500.0,9.999e-05,2]
[351697118,1738750232822,-300.0,9.999e-05,2]
[351697119,1738750232832,-1953.0,0.0001,2]
[351697120,1738750232841,-15573.56162068,0.0001,2]
[351697121,1738750232855,-11838.33577106,0.0001,2]
[351697122,1738750232867,-477.950002,0.0001,2]
[351697123,1738750232878,-560.45282412,0.0001,2]
[351697125,1738750237696,-500.0,9.992e-05,2]
[351697126,1738750237705,-1523.56550519,0.0001,2]
[351697127,1738750239973,-6922.03406254,0.0001,2]
[351697128,1738750240084,-414.1,0.0001,2]
[351697129,1738750240096,-751.6,0.0001,2]
[351697150,1738750242961,-2340.78163978,0.0001,2]
[351697152,1738750242974,-2286.73105587,0.0001,2]
[351697155,1738750243020,-3308.82272705,0.0001,2]
[351697156,1738750243080,-4805.99614884,0.0001,2]
[351697157,1738750243139,-689019.57400694,0.0001,2]
[351697201,1738750245966,-500.0,9.992e-05,2]
[351697202,1738750245976,-2084.05063164,0.0001,2]
[351697203,1738750246138,-1398.40435846,0.0001,2]
[351697204,1738750246301,-18114.88204708,0.0001,2]
[351697221,1738750747625,-1094.88,8.219e-05,2]
[351697222,1738750794548,810.0,8.119e-05,2]
[351697229,1738751079279,165.36,7.397e-05,2]
[351697230,1738751136266,1467.82666714,8e-05,2]
[351697277,1738751432041,-596.410003,8.8e-05,2]
[351697286,1738751432129,-1340.26031077,8.8e-05,2]
[351697291,1738751437677,151.71,6.929e-05,2]
[351697302,1738751437944,-5742.285696,8.8e-05,2]
[351697303,1738751438006,-1959.21653907,8.8e-05,2]
[351697304,1738751438018,-1495.38665154,8.8e-05,2]
[351697305,1738751438066,-19551.8,8.8e-05,2]
[351697306,1738751438128,-608.365283,8.8e-05,2]
[351697313,1738751440122,-711.58483449,8.661e-05,2]
[351697314,1738751440136,-1384.16468824,8.661e-05,2]
[351697315,1738751440297,-416.2249962,8.661e-05,2]
[351697316,1738751440309,-902.18031963,8.661e-05,2]
[351697321,1738751443373,-509.57516144,8.661e-05,2]
[351697322,1738751443382,-8417.43291856,8.8e-05,2]
[351697323,1738751443701,-466.75863065,8.8e-05,2]
[351697324,1738751443768,-1390.01409529,8.805e-05,2]
[351697325,1738751443778,-1476.88,8.806e-05,2]
[351697326,1738751443788,-150.0,8.835e-05,2]
[351697327,1738751443798,-4830.54727406,8.836e-05,2]
[351697328,1738751443809,-17288.988781,8.836e-05,2]
[351697330,1738751446054,-2320.30908491,8.836e-05,2]
[351697331,1738751446065,-1123.95040469,8.836e-05,2]
[351697332,1738751446077,-1486.46821,8.836e-05,2]
[351697333,1738751446116,-10918.87735364,8.836e-05,2]
[351697334,1738751446126,-14872.18,8.836e-05,2]
[351697335,1738751446136,-5404.6281,8.836e-05,2]
[351697336,1738751446149,-3814.83321035,8.836e-05,2]
[351697337,1738751446161,-413.21997599,8.836e-05,2]
[351697361,1738751625134,1000.0,8e-05,2]
[351697362,1738751632907,1000.0,8e-05,2]
[351697363,1738751640234,1059.0,8e-05,2]
[351697364,1738751647392,501.0,8e-05,2]
[351697365,1738751653416,1000.0,8e-05,2]
[351697367,1738751719832,1040.13,8.219e-05,2]
[351697382,1738752448104,-273.20681466,8.298e-05,2]
[351697384,1738752538307,1001.79,8.219e-05,2]
[351697385,1738752551771,200.0,8.195e-05,2]
[351697386,1738752560155,-12.25318534,8.298e-05,2]
[351697387,1738752560175,-300.0,8.307e-05,2]
[351697388,1738752560195,-2378.66713837,8.313e-05,2]
[351697407,1738752632158,-1915.89286163,8.313e-05,2]
[351697408,1738752632168,-285.68506674,8.313e-05,2]
[351697409,1738752632181,-52.91239568,8.313e-05,2]
[351697410,1738752632190,-189.6,8.313e-05,2]
[351697411,1738752632199,-1791.74,8.337e-05,2]
[351697412,1738752632208,-196.06,8.338e-05,2]
[351697413,1738752632218,-2197.11115234,8.338e-05,2]
[351697414,1738752632227,-1227.56,8.351e-05,2]
[351697415,1738752632236,-200.0,8.373e-05,2]
[351697416,1738752632245,-438.52,8.38e-05,2]
[351697417,1738752632255,-1500.0,8.398e-05,2]
[351697418,1738752632264,-233.52,8.401e-05,2]
[351697419,1738752632273,-1800.62,8.401e-05,2]
[351697420,1738752632283,-1000.0,8.41e-05,2]
[351697421,1738752632293,-184.71,8.41e-05,2]
[351697422,1738752632303,-2880.99,8.602e-05,2]
[351697423,1738752632312,-595.3719,8.699e-05,2]
[351697424,1738752632323,-941.5,8.701e-05,2]
[351697425,1738752632332,-1548.35,8.74e-05,2]
[351697426,1738752632342,-439.41,8.74e-05,2]
[351697427,1738752632352,-219.7441,8.836e-05,2]
[351697428,1738752632362,-439.5,8.84e-05,2]
[351697429,1738752632371,-1197.19,8.84e-05,2]
[351697430,1738752632380,-574.85,8.842e-05,2]
[351697431,1738752632389,-157.19,8.867e-05,2]
[351697432,1738752632400,-175.87,8.969e-05,2]
[351697433,1738752632410,-150.0,9.26e-05,2]
[351697434,1738752632419,-438.59,9.26e-05,2]
[351697435,1738752632428,-150.0,9.26e-05,2]
[351697436,1738752632437,-438.59,9.26e-05,2]
[351697437,1738752632446,-151.95,9.26e-05,2]
[351697438,1738752632455,-438.59,9.26e-05,2]
[351697439,1738752632465,-438.59,9.26e-05,2]
[351697440,1738752632474,-438.59,9.26e-05,2]
[351697441,1738752632484,-438.59,9.26e-05,2]
[351697442,1738752632492,-438.59,9.26e-05,2]
[351697443,1738752632502,-438.59,9.26e-05,2]
[351697444,1738752632519,-438.59,9.26e-05,2]
[351697445,1738752632529,-472.29,9.26e-05,2]
[351697446,1738752632539,-1000.0,9.461e-05,2]
[351697447,1738752632549,-297.16,9.476e-05,2]
[351697448,1738752632560,-183.968,9.476e-05,2]
[351697449,1738752632570,-183.968,9.476e-05,2]
[351697450,1738752632579,-183.968,9.476e-05,2]
[351697451,1738752632588,-183.968,9.476e-05,2]
[351697452,1738752632598,-1848.314,9.577e-05,2]
[351697453,1738752632608,-150.94126786,9.628e-05,2]
[351697455,1738752632618,-500.0,9.719e-05,2]
[351697457,1738752632628,-1000.0,9.726e-05,2]
[351697458,1738752632638,-1000.0,9.771e-05,2]
[351697459,1738752632648,-1000.0,9.794e-05,2]
[351697460,1738752632657,-994.00585749,9.821e-05,2]
[351697461,1738752632666,-1000.0,9.864e-05,2]
[351697462,1738752632675,-1000.0,9.891e-05,2]
[351697463,1738752632685,-641.9505687,9.9e-05,2]
[351697464,1738752632694,-80796.23528145,9.9e-05,2]
[351697465,1738752632704,-574.85,9.947e-05,2]
[351697466,1738752632714,-500.0,9.989e-05,2]
[351697467,1738752632724,-500.0,9.989e-05,2]
[351697468,1738752632734,-500.0,9.989e-05,2]
[351697469,1738752632745,-500.0,9.989e-05,2]
[351697470,1738752632755,-500.0,9.989e-05,2]
[351697471,1738752632764,-261.84,9.989e-05,2]
[351697472,1738752632773,-500.0,9.989e-05,2]
[351697473,1738752632782,-557.64889519,9.989e-05,2]
[351697474,1738752632794,-500.0,9.989e-05,2]
[351697475,1738752632803,-450.01,9.989e-05,2]
[351697476,1738752632813,-500.0,9.989e-05,2]
[351697477,1738752632823,-645.62,9.989e-05,2]
[351697478,1738752632832,-500.0,9.989e-05,2]
[351697479,1738752632842,-500.0,9.989e-05,2]
[351697480,1738752632852,-500.0,9.989e-05,2]
[351697481,1738752632862,-500.0,9.989e-05,2]
[351697482,1738752632871,-500.0,9.989e-05,2]
[351697483,1738752632881,-507.0,9.989e-05,2]
[351697484,1738752632892,-500.0,9.989e-05,2]
[351697485,1738752632902,-500.0,9.989e-05,2]
[351697486,1738752632911,-500.0,9.989e-05,2]
[351697487,1738752632920,-500.0,9.989e-05,2]
[351697488,1738752632929,-1265.42,9.989e-05,2]
[351697489,1738752632938,-500.0,9.989e-05,2]
[351697490,1738752632948,-500.0,9.989e-05,2]
[351697491,1738752632957,-500.0,9.989e-05,2]
[351697492,1738752632966,-500.0,9.989e-05,2]
[351697493,1738752632975,-500.0,9.989e-05,2]
[351697494,1738752632984,-500.0,9.989e-05,2]
[351697495,1738752632994,-500.0,9.989e-05,2]
[351697496,1738752633003,-500.0,9.989e-05,2]
[351697497,1738752633012,-500.0,9.989e-05,2]
[351697498,1738752633021,-154.14839366,9.989e-05,2]
[351697499,1738752633031,-211.52,9.989e-05,2]
[351697500,1738752633041,-173.12,9.989e-05,2]
[351697501,1738752633050,-500.0,9.989e-05,2]
[351697502,1738752633060,-500.0,9.989e-05,2]
[351697503,1738752633070,-500.0,9.989e-05,2]
[351697504,1738752633079,-500.0,9.989e-05,2]
[351697505,1738752633088,-264.83,9.989e-05,2]
[351697506,1738752633098,-63084.16843834,9.99e-05,2]
[351697507,1738752633111,-4183.5135596,9.99e-05,2]
[351697508,1738752633123,-1722.96518487,9.99e-05,2]
[351697509,1738752633141,-63987.35014491,9.99e-05,2]
[351697510,1738752633151,-152.0,9.991e-05,3]
[351697511,1738752633163,-500.0,9.999e-05,2]
[351697512,1738752633173,-1644.0,0.0001,2]
[351697513,1738752633183,-224725.86065269,0.0001,2]
[351697514,1738752633198,-491.9347144,0.0001,2]
[351697519,1738752638119,-500.0,9.989e-05,2]
[351697520,1738752638130,-1628.86552754,0.0001,2]
[351697521,1738752638303,-1369.714304,0.0001,2]
[351697530,1738752640486,-532.4907186,0.0001,2]
[351697531,1738752640498,-477.21410041,0.0001,2]
[351697532,1738752640547,-471.29518099,0.0001,2]
[351697533,1738752640558,-2601.60481901,0.0001,2]
[351697561,1738752643311,-7806.74460825,0.0001,2]
[351697562,1738752643325,-3103.3582,0.0001,2]
[351697563,1738752643337,-91689.92516529,0.0001,2]
[351697587,1738752646452,-237.72,9.549e-05,2]
[351697588,1738752646461,-500.0,9.989e-05,2]
[351697589,1738752646471,-603.23642857,0.0001,2]
[351697590,1738752646512,-309.415,0.0001,2]
[351697613,1738753740164,1149.55,8.219e-05,2]
[351697616,1738753754677,3109.84,8.219e-05,2]
[351697619,1738753810763,948.32,8.143e-05,2]
[351697627,1738753832378,-369.52720407,8.232e-05,2]
[351697628,1738753832429,-630.47279593,8.232e-05,2]
[351697629,1738753832438,-427.33109926,8.24e-05,2]
[351697630,1738753832450,-58.31890074,8.24e-05,2]
[351697631,1738753832459,-823.55,8.294e-05,2]
[351697632,1738753832468,-839.12,8.369e-05,2]
[351697633,1738753832477,-3471.01109926,8.377e-05,2]
[351697634,1738753832535,-16712.34360833,8.377e-05,2]
[351697635,1738753832544,-170.48,8.377e-05,2]
[351697636,1738753832554,-300.0,8.394e-05,2]
[351697637,1738753832563,-500.0,8.395e-05,2]
[351697638,1738753832573,-500.0,8.395e-05,2]
[351697639,1738753832583,-172.34855762,8.395e-05,2]
[351697640,1738753832591,-23502.38,8.396e-05,2]
[351697641,1738753832600,-600.0,8.407e-05,2]
[351697642,1738753832610,-200.0,8.407e-05,2]
[351697643,1738753832619,-640.12883984,8.416e-05,2]
[351697644,1738753832628,-150.0,8.416e-05,2]
[351697645,1738753832638,-250.0,8.417e-05,2]
[351697646,1738753832647,-35574.02632774,8.417e-05,2]
[351697647,1738753832658,-5512.01367226,8.417e-05,2]
[351697648,1738753832668,-300.0,8.417e-05,2]
[351697649,1738753832678,-1500.0,8.437e-05,2]
[351697650,1738753832687,-3245.02,8.459e-05,2]
[351697651,1738753832696,-2303.04551084,8.608e-05,2]
[351697652,1738753832706,-297.9608,8.836e-05,2]
[351697653,1738753832715,-5064.1013,8.836e-05,2]
[351697654,1738753832724,-1707.3318,8.836e-05,2]
[351697655,1738753832734,-26798.7328,8.836e-05,2]
[351697656,1738753832746,-67653.1761,8.836e-05,2]
[351697657,1738753832755,-1856.7354,8.836e-05,2]
[351697658,1738753832765,-975.3001,8.973e-05,2]
[351697659,1738753832774,-524.0765,8.973e-05,2]
[351697660,1738753832785,-479.06,9.041e-05,2]
[351697661,1738753832796,-439.5,9.041e-05,2]
[351697663,1738753832806,-150.05,9.067e-05,2]
[351697665,1738753832816,-1000.0,9.07e-05,2]
[351697666,1738753832826,-150.05,9.07e-05,2]
[351697667,1738753832835,-150.05,9.072e-05,2]
[351697668,1738753832845,-150.05,9.075e-05,2]
[351697669,1738753832857,-150.05,9.077e-05,2]
[351697671,1738753832867,-150.05,9.08e-05,2]
[351697673,1738753832876,-150.05,9.082e-05,2]
[351697675,1738753832886,-150.05,9.085e-05,2]
[351697677,1738753832897,-150.05,9.087e-05,2]
[351697679,1738753832907,-150.05,9.09e-05,2]
[351697681,1738753832916,-150.05,9.092e-05,2]
[351697683,1738753832925,-150.05,9.095e-05,2]
[351697685,1738753832936,-150.05,9.097e-05,2]
[351697687,1738753832945,-150.05,9.1e-05,2]
[351697690,1738753832954,-150.05,9.102e-05,2]
[351697693,1738753832964,-150.05,9.105e-05,2]
[351697696,1738753832973,-150.05,9.108e-05,2]
[351697699,1738753832982,-150.05,9.11e-05,2]
[351697702,1738753832991,-150.05,9.113e-05,2]
[351697705,1738753833001,-150.0,9.178e-05,2]
[351697708,1738753833011,-438.59,9.178e-05,2]
[351697711,1738753833021,-420.0,9.233e-05,2]
[351697714,1738753833031,-255.0,9.257e-05,2]
[351697717,1738753833041,-1000.0,9.262e-05,2]
[351697720,1738753833050,-823.55,9.331e-05,2]
[351697723,1738753833059,-500.0,9.562e-05,2]
[351697727,1738753833070,-1478.652,9.7e-05,2]
[351697731,1738753833080,-500.0,9.719e-05,2]
[351697734,1738753833090,-706.87008695,9.729e-05,2]
[351697737,1738753833100,-3911.0,9.843e-05,2]
[351697740,1738753833110,-215.661,9.843e-05,2]
[351697742,1738753833119,-1007.0,9.843e-05,2]
[351697743,1738753833129,-1000.0,9.886e-05,2]
[351697745,1738753833139,-500.0,9.988e-05,2]
[351697748,1738753833148,-320.500613,9.988e-05,2]
[351697750,1738753833159,-500.0,9.988e-05,2]
[351697752,1738753833169,-500.0,9.988e-05,2]
[351697754,1738753833180,-500.0,9.988e-05,2]
[351697756,1738753833189,-151.17,9.988e-05,2]
[351697758,1738753833200,-500.0,9.988e-05,2]
[351697759,1738753833211,-634.98297254,9.989e-05,2]
[351697761,1738753833220,-198.29,9.989e-05,2]
[351697764,1738753833231,-526.19,9.989e-05,2]
[351697766,1738753833241,-208.42,9.989e-05,2]
[351697768,1738753833250,-500.0,9.989e-05,2]
[351697770,1738753833259,-156.45104531,9.989e-05,2]
[351697772,1738753833268,-382.66,9.989e-05,2]
[351697774,1738753833277,-360.54,9.989e-05,2]
[351697776,1738753833287,-500.0,9.989e-05,2]
[351697778,1738753833296,-500.0,9.989e-05,2]
[351697779,1738753833306,-259.13,9.989e-05,2]
[351697782,1738753833318,-500.0,9.989e-05,2]
[351697784,1738753833327,-193.53,9.989e-05,2]
[351697786,1738753833337,-372.67,9.989e-05,2]
[351697788,1738753833346,-500.0,9.989e-05,2]
[351697789,1738753833355,-500.0,9.989e-05,2]
[351697791,1738753833364,-355.65014134,9.989e-05,2]
[351697793,1738753833374,-500.0,9.989e-05,2]
[351697795,1738753833384,-245.62,9.989e-05,2]
[351697797,1738753833393,-500.0,9.989e-05,2]
[351697799,1738753833403,-460.21,9.989e-05,2]
[351697801,1738753833413,-500.0,9.989e-05,2]
[351697804,1738753833424,-240.38,9.989e-05,2]
[351697806,1738753833434,-500.0,9.989e-05,2]
[351697807,1738753833443,-500.0,9.989e-05,2]
[351697809,1738753833453,-491.88,9.989e-05,2]
[351697811,1738753833462,-265.23,9.989e-05,2]
[351697813,1738753833472,-581.14,9.989e-05,2]
[351697815,1738753833482,-500.0,9.989e-05,2]
[351697818,1738753833492,-500.0,9.989e-05,2]
[351697820,1738753833501,-565.55,9.989e-05,2]
[351697821,1738753833511,-241.0,9.989e-05,2]
[351697823,1738753833521,-343.45,9.989e-05,2]
[351697825,1738753833530,-500.0,9.989e-05,2]
[351697827,1738753833541,-500.0,9.989e-05,2]
[351697829,1738753833550,-500.0,9.989e-05,2]
[351697831,1738753833560,-500.0,9.989e-05,2]
[351697833,1738753833570,-500.0,9.989e-05,2]
[351697835,1738753833579,-500.0,9.989e-05,2]
[351697837,1738753833588,-390.2,9.989e-05,2]
[351697839,1738753833598,-500.0,9.989e-05,2]
[351697842,1738753833609,-500.0,9.989e-05,2]
[351697843,1738753833619,-500.0,9.989e-05,2]
[351697845,1738753833628,-500.0,9.989e-05,2]
[351697847,1738753833637,-500.0,9.989e-05,2]
[351697849,1738753833646,-500.0,9.989e-05,2]
[351697851,1738753833656,-500.0,9.989e-05,2]
[351697853,1738753833665,-500.0,9.989e-05,2]
[351697855,1738753833674,-230.54,9.989e-05,2]
[351697857,1738753833683,-182.99,9.989e-05,2]
[351697859,1738753833692,-500.0,9.989e-05,2]
[351697862,1738753833703,-646.36,9.989e-05,2]